[Event "56th Rubinstein Memorial D 2020"]
[Site "Polanica Zdroj"]
[Date "2020.08.22"]
[Round "8.11"]
[White "Kolodziejski, Grzegorz"]
[Black "Szydelko, Kazimierz"]
[Result "1-0"]
[ECO "B40"]
[WhiteElo "1550"]
[BlackElo "1713"]
[Annotator "NA"]
[PlyCount "83"]
[EventDate "2020.08.15"]
[EventType "swiss"]
[EventCountry "POL"]
[SourceTitle "playchess.com"]
[Source "ChessBase"]
[SourceQuality "1"]
[TimeControl "40/5400+30:1800+30"]

1. e4 {[%emt 0:00:00]} c5 {[%emt 0:00:00]} 2. Nf3 {[%emt 0:00:00]} e6 {[%emt 0:00:00]} 3. d4 {[%emt 0:00:05]} cxd4 {[%emt 0:00:00]} 4. Nxd4 {[%emt 0:00:21]} Nf6 {[%emt 0:00:05]} 5. Bd3 {[%emt 0:00:35]} Nc6 {[%emt 0:00:46]} 6. Be3 {[%emt 0:00:27]} d5 {[%emt 0:00:51]} 7. exd5 {[%emt 0:04:36]} Nxd4 {[%emt 0:01:37]} 8. Bxd4 {[%emt 0:00:20]} Nxd5 {[%emt 0:05:04]} 9. O-O {[%emt 0:01:09]} Bd7 {[%emt 0:04:03]} 10. Be4 {[%emt 0:00:54]} Bc6 {[%emt 0:00:34]} 11. Nc3 {[%emt 0:00:57]} Qd7 {[%emt 0:04:34]} 12. Nxd5 {[%emt 0:01:54]} Bxd5 {[%emt 0:00:13]} 13. Bxd5 {[%emt 0:00:20]} Qxd5 {[%emt 0:00:25]} 14. Be3 {[%emt 0:00:12]} Qb5 {[%emt 0:01:44]} 15. Qf3 {[%emt 0:06:38]} Be7 {[%emt 0:04:12]} 16. Bd4 {[%emt 0:01:05]} O-O {[%emt 0:01:06]} 17. a4 {[%emt 0:02:55]} Qa6 {[%emt 0:06:03]} 18. Rfd1 {[%emt 0:02:06]} Rac8 {[%emt 0:02:23]} 19. c3 {[%emt 0:01:55]} Rfd8 {[%emt 0:02:06]} 20. b4 {[%emt 0:00:38]} Rd5 {[%emt 0:02:40]} 21. b5 {[%emt 0:00:52]} Qa5 {[%emt 0:02:02]} 22. Qg4 {[%emt 0:05:45]} Rg5 {[%emt 0:01:20]} 23. Qe4 {[%emt 0:00:11]} Qc7 {[%emt 0:06:19]} 24. a5 {[%emt 0:01:01]} Rxb5 {[%emt 0:06:36]} 25. Bxa7 {[%emt 0:00:17]} Qxc3 {[%emt 0:02:12]} 26. Bb6 {[%emt 0:00:22]} Rd5 {[%emt 0:05:02]} 27. g3 {[%emt 0:01:30]} Rc4 {[%emt 0:06:28]} 28. Qe2 {[%emt 0:03:59]} Re5 {[%emt 0:16:54]} 29. Qa2 {[%emt 0:01:40]} Rce4 {[%emt 0:07:12]} 30. Rac1 {[%emt 0:02:15]} Re1+ {[%emt 0:00:47]} 31. Kg2 {[%emt 0:01:22]} Qb4 {[%emt 0:00:47]} 32. Rxe1 {[%emt 0:01:03]} Rxe1 {[%emt 0:00:20]} 33. Rc8+ {[%emt 0:00:17]} Bf8 {[%emt 0:00:23]} 34. Qc2 {[%emt 0:01:40]} Re5 {[%emt 0:03:07]} 35. Qc7 {[%emt 0:02:28]} Qe4+ {[%emt 0:01:07]} 36. f3 {[%emt 0:00:53]} Qe2+ {[%emt 0:03:13]} 37. Bf2 {[%emt 0:00:07]} g6 {[%emt 0:01:48]} 38. Qd8 {[%emt 0:00:16]} Kg7 {[%emt 0:00:42]} 39. Qxf8+ {[%emt 0:00:06]} Kf6 {[%emt 0:00:02]} 40. Qh8+ {[%emt 0:00:24]} Kf5 {[%emt 0:02:41]} 41. Qxh7 {[%emt 0:30:44]} Rxa5 {[%emt 0:31:02]} 42. Qxf7+ {[%emt 0:00:16]} 1-0

[Event "56th Rubinstein Memorial D 2020"]
[Site "Polanica Zdroj"]
[Date "2020.08.22"]
[Round "8.12"]
[White "Ochenduszko, Bartosz"]
[Black "Grzelak, Piotr"]
[Result "0-1"]
[ECO "A40"]
[WhiteElo "1531"]
[BlackElo "1664"]
[Annotator "NA RC"]
[PlyCount "120"]
[EventDate "2020.08.15"]
[EventType "swiss"]
[EventCountry "POL"]
[SourceTitle "playchess.com"]
[Source "ChessBase"]
[SourceQuality "1"]
[TimeControl "40/5400+30:1800+30"]

1. d4 {[%emt 0:00:00]} e6 {[%emt 0:10:59]} 2. Bf4 {[%emt 0:00:00]} d5 {[%emt 0:00:02]} 3. e3 {[%emt 0:00:00]} Bd6 {[%emt 0:00:23]} 4. Bg3 {[%emt 0:00:08]} b6 {[%emt 0:00:36]} 5. c3 {[%emt 0:01:20]} Bb7 {[%emt 0:00:29]} 6. Nf3 {[%emt 0:01:03]} Nd7 {[%emt 0:00:57]} 7. Nbd2 {[%emt 0:03:58]} Ngf6 {[%emt 0:00:24]} 8. Bd3 {[%emt 0:01:40]} Qe7 {[%emt 0:00:25]} 9. Ne5 {[%emt 0:00:58]} O-O {[%emt 0:02:11]} 10. Qc2 {[%emt 0:05:32]} c5 {[%emt 0:02:25]} 11. Nxd7 {[%emt 0:25:26]} Qxd7 {[%emt 0:00:30]} 12. Bh4 {[%emt 0:00:30]} c4 {[%emt 0:00:32]} 13. Be2 {[%emt 0:00:21]} Ne8 {[%emt 0:02:11]} 14. g4 {[%emt 0:01:44]} f5 {[%emt 0:03:17]} 15. O-O-O {[%emt 0:08:34]} a5 {[%emt 0:01:58]} 16. Bg3 {[%emt 0:04:28]} b5 {[%emt 0:00:21]} 17. h4 {[%emt 0:01:31]} b4 {[%emt 0:00:42]} 18. Nb1 {[%emt 0:08:32]} Bc6 {[%emt 0:00:29]} 19. Rdg1 {[%emt 0:02:13]} Bxg3 {[%emt 0:05:21]} 20. Rxg3 {[%emt 0:00:52]} f4 {[%emt 0:00:53]} 21. Rf3 {[%emt 0:02:13]} Rb8 {[%emt 0:00:43]} 22. Rxf4 {[%emt 0:01:39]} Rxf4 {[%emt 0:00:36]} 23. exf4 {[%emt 0:00:02]} Nd6 {[%emt 0:02:21]} 24. Re1 {[%emt 0:01:06]} Qf7 {[%emt 0:03:48]} 25. Qd2 {[%emt 0:05:15]} Ne4 {[%emt 0:01:25]} 26. Qe3 {[%emt 0:00:02]} bxc3 {[%emt 0:00:26]} 27. Nxc3 {[%emt 0:00:54]} Nxc3 {[%emt 0:00:28]} 28. Qxc3 {[%emt 0:00:53]} Qxf4+ {[%emt 0:00:42]} 29. Qe3 {[%emt 0:00:03]} Qxe3+ {[%emt 0:00:51]} 30. fxe3 {[%emt 0:00:01]} Rf8 {[%emt 0:00:27]} 31. Rf1 {[%emt 0:00:23]} Rxf1+ {[%emt 0:00:28]} 32. Bxf1 {[%emt 0:00:01]} Kf7 {[%emt 0:00:24]} 33. Kd2 {[%emt 0:00:58]} Kf6 {[%emt 0:01:07]} 34. e4 {[%emt 0:05:50]} e5 35. Ke3 {[%emt 0:00:53]} exd4+ {[%emt 0:02:15]} 36. Kxd4 {[%emt 0:00:03]} dxe4 {[%emt 0:00:37]} 37. Bxc4 {[%emt 0:00:27]} h5 {[%emt 0:00:46]} 38. Be2 {[%emt 0:03:59]} hxg4 {[%emt 0:01:49]} 39. Bxg4 {[%emt 0:00:03]} g6 {[%emt 0:00:40]} 40. Kc5 {[%emt 0:05:01]} Ba8 {[%emt 0:00:43]} 41. Kb6 {[%emt 0:31:15]} Ke5 {[%emt 0:31:12]} 42. h5 {[%emt 0:04:20]} gxh5 {[%emt 0:00:33]} 43. Bxh5 {[%emt 0:00:02]} Kf4 {[%emt 0:00:32]} 44. Kxa5 {[%emt 0:01:27]} e3 {[%emt 0:00:12]} 45. Be2 {[%emt 0:00:03]} Kg3 {[%emt 0:01:47]} 46. Kb6 {[%emt 0:01:20]} Kf2 {[%emt 0:00:27]} 47. Bb5 {[%emt 0:00:43]} Bg2 {[%emt 0:00:22]} 48. a4 {[%emt 0:02:33]} Bf1 {[%emt 0:00:32]} 49. Bxf1 {[%emt 0:00:44]} Kxf1 {[%emt 0:00:02]} 50. a5 {[%emt 0:00:11]} e2 {[%emt 0:00:06]} 51. b4 {[%emt 0:03:12]} e1=Q {[%emt 0:00:14]} 52. b5 {[%emt 0:00:26]} Qe6+ {[%emt 0:01:33]} 53. Kb7 {[%emt 0:00:17]} Qd7+ {[%emt 0:09:22]} 54. Kb6 {[%emt 0:00:47]} Ke2 {[%emt 0:01:13]} 55. a6 {[%emt 0:00:37]} Kd3 {[%emt 0:00:33]} 56. a7 {[%emt 0:00:23]} Qc8 {[%emt 0:00:26]} 57. Ka5 {[%emt 0:00:22]} Qb7 {[%emt 0:00:34]} 58. b6 {[%emt 0:00:14]} Kc4 {[%emt 0:00:17]} 59. Ka4 {[%emt 0:00:59]} Qxb6 {[%emt 0:00:23]} 60. a8=Q {[%emt 0:00:11]} Qb4# 0-1

[Event "56th Rubinstein Memorial D 2020"]
[Site "Polanica Zdroj"]
[Date "2020.08.22"]
[Round "8.13"]
[White "Brzozowski, Pawel"]
[Black "Zyla, Tomasz"]
[Result "1-0"]
[ECO "B38"]
[WhiteElo "1620"]
[BlackElo "1543"]
[Annotator "NA"]
[PlyCount "61"]
[EventDate "2020.08.15"]
[EventType "swiss"]
[EventCountry "POL"]
[SourceTitle "playchess.com"]
[Source "ChessBase"]
[SourceQuality "1"]
[TimeControl "40/5400+30:1800+30"]

1. e4 {[%emt 0:00:00]} c5 {[%emt 0:00:00]} 2. Nf3 {[%emt 0:00:00]} Nc6 {[%emt 0:00:00]} 3. d4 {[%emt 0:00:00]} cxd4 {[%emt 0:00:00]} 4. Nxd4 {[%emt 0:00:00]} g6 {[%emt 0:00:00]} 5. c4 {[%emt 0:00:22]} Bg7 {[%emt 0:00:17]} 6. Be3 {[%emt 0:00:14]} d6 {[%emt 0:02:02]} 7. Nc3 {[%emt 0:00:55]} Nf6 {[%emt 0:00:11]} 8. Be2 {[%emt 0:00:38]} O-O {[%emt 0:00:31]} 9. O-O {[%emt 0:01:46]} Ne8 {[%emt 0:06:15]} 10. Qd2 {[%emt 0:05:15]} e5 {[%emt 0:05:42]} 11. Nxc6 {[%emt 0:02:46]} bxc6 {[%emt 0:00:08]} 12. c5 {[%emt 0:04:07]} f5 {[%emt 0:03:42]} 13. f3 {[%emt 0:06:36]} f4 {[%emt 0:05:54]} 14. Bf2 {[%emt 0:02:02]} g5 {[%emt 0:21:52]} 15. Rfd1 {[%emt 0:26:28]} Rf6 {[%emt 0:00:49]} 16. Rac1 {[%emt 0:02:49]} h5 {[%emt 0:15:13]} 17. b4 {[%emt 0:10:46]} a6 {[%emt 0:02:23]} 18. a4 {[%emt 0:05:57]} Qd7 {[%emt 0:12:02]} 19. Nd5 {[%emt 0:04:57]} cxd5 {[%emt 0:05:32]} 20. Qxd5+ {[%emt 0:01:50]} Kh7 {[%emt 0:00:17]} 21. Qxa8 {[%emt 0:00:42]} Bb7 {[%emt 0:05:36]} 22. c6 {[%emt 0:00:52]} Qxc6 {[%emt 0:03:41]} 23. Rxc6 {[%emt 0:00:06]} Bxa8 {[%emt 0:00:03]} 24. Rc8 {[%emt 0:00:11]} Bxe4 {[%emt 0:00:09]} 25. fxe4 {[%emt 0:00:31]} g4 {[%emt 0:01:32]} 26. Rxe8 {[%emt 0:00:53]} Bh6 {[%emt 0:00:16]} 27. g3 {[%emt 0:01:08]} f3 {[%emt 0:01:45]} 28. Bxa6 {[%emt 0:00:20]} h4 29. b5 {[%emt 0:00:24]} Rf7 {[%emt 0:01:33]} 30. Rxd6 {[%emt 0:00:21]} Rc7 {[%emt 0:00:08]} 31. Rc8 {[%emt 0:00:04]} 1-0

[Event "56th Rubinstein Memorial D 2020"]
[Site "Polanica Zdroj"]
[Date "2020.08.22"]
[Round "8.14"]
[White "Bialik, Nikodem"]
[Black "Ciborowski, Konrad Jr"]
[Result "0-1"]
[ECO "C01"]
[WhiteElo "1552"]
[BlackElo "1405"]
[Annotator "NA"]
[PlyCount "146"]
[EventDate "2020.08.15"]
[EventType "swiss"]
[EventCountry "POL"]
[SourceTitle "playchess.com"]
[Source "ChessBase"]
[SourceQuality "1"]
[TimeControl "40/5400+30:1800+30"]

1. e4 {[%emt 0:10:46]} e6 {[%emt 0:00:13]} 2. d4 {[%emt 0:00:22]} d5 {[%emt 0:00:04]} 3. exd5 {[%emt 0:00:06]} exd5 {[%emt 0:00:05]} 4. c4 {[%emt 0:00:06]} Nf6 {[%emt 0:00:51]} 5. Nf3 {[%emt 0:00:32]} Be7 {[%emt 0:00:41]} 6. Nc3 {[%emt 0:00:45]} O-O {[%emt 0:00:28]} 7. cxd5 {[%emt 0:01:42]} Nxd5 {[%emt 0:00:07]} 8. Bc4 {[%emt 0:00:37]} Be6 {[%emt 0:00:44]} 9. Qb3 {[%emt 0:03:52]} Bb4 {[%emt 0:00:15]} 10. O-O {[%emt 0:01:43]} Bxc3 {[%emt 0:01:33]} 11. bxc3 {[%emt 0:00:12]} Nc6 {[%emt 0:00:32]} 12. Qb2 {[%emt 0:02:36]} Na5 {[%emt 0:04:11]} 13. Bd3 {[%emt 0:01:27]} h6 {[%emt 0:01:49]} 14. Bd2 {[%emt 0:01:53]} Nb6 {[%emt 0:00:25]} 15. Qc1 {[%emt 0:02:42]} Bc4 {[%emt 0:01:30]} 16. Ne5 {[%emt 0:02:29]} Bxd3 {[%emt 0:00:26]} 17. Nxd3 {[%emt 0:00:10]} Nac4 {[%emt 0:00:33]} 18. Bf4 {[%emt 0:00:53]} Nd5 {[%emt 0:02:06]} 19. Bg3 {[%emt 0:01:44]} Re8 {[%emt 0:01:07]} 20. Nb2 {[%emt 0:01:22]} Ndb6 {[%emt 0:02:17]} 21. Qc2 {[%emt 0:01:03]} Qd7 {[%emt 0:03:04]} 22. Rfe1 {[%emt 0:02:55]} Qc6 {[%emt 0:00:27]} 23. Nd3 {[%emt 0:05:01]} Nd5 {[%emt 0:00:50]} 24. Rac1 {[%emt 0:07:52]} b6 {[%emt 0:05:35]} 25. Ne5 {[%emt 0:04:17]} Nxe5 {[%emt 0:00:24]} 26. Bxe5 {[%emt 0:00:35]} f6 {[%emt 0:00:44]} 27. Bg3 {[%emt 0:03:22]} Qxc3 {[%emt 0:00:40]} 28. Rxe8+ {[%emt 0:04:53]} Rxe8 {[%emt 0:00:05]} 29. Qxc3 {[%emt 0:00:17]} Nxc3 {[%emt 0:00:04]} 30. Kf1 {[%emt 0:00:14]} Nb5 {[%emt 0:01:09]} 31. a4 {[%emt 0:01:35]} Nxd4 {[%emt 0:00:10]} 32. Rxc7 {[%emt 0:00:27]} a6 {[%emt 0:01:56]} 33. Ra7 {[%emt 0:01:04]} Nb3 {[%emt 0:00:15]} 34. Bf4 {[%emt 0:01:38]} Nc5 {[%emt 0:02:35]} 35. Be3 {[%emt 0:07:45]} Nxa4 {[%emt 0:01:00]} 36. Rxa6 {[%emt 0:00:05]} b5 {[%emt 0:00:27]} 37. Ke2 {[%emt 0:02:03]} Nc3+ {[%emt 0:00:24]} 38. Kd3 {[%emt 0:01:01]} Nd5 {[%emt 0:00:13]} 39. Bd2 {[%emt 0:06:48]} Rd8 {[%emt 0:00:45]} 40. Kc2 {[%emt 0:00:33]} Rb8 {[%emt 0:02:36]} 41. Rd6 {[%emt 0:30:30]} Nb6 {[%emt 0:31:37]} 42. Kb3 {[%emt 0:03:50]} Nc4 {[%emt 0:01:10]} 43. Rd5 {[%emt 0:01:52]} Rb7 {[%emt 0:02:52]} 44. h4 {[%emt 0:02:40]} Kf7 {[%emt 0:00:14]} 45. Bf4 {[%emt 0:00:51]} Ke6 {[%emt 0:00:32]} 46. Rc5 {[%emt 0:02:15]} g5 {[%emt 0:02:20]} 47. hxg5 {[%emt 0:00:20]} hxg5 {[%emt 0:00:43]} 48. Bc1 {[%emt 0:03:22]} Nd6 {[%emt 0:01:30]} 49. Be3 {[%emt 0:01:50]} Nf5 {[%emt 0:01:25]} 50. Bc1 {[%emt 0:01:11]} Nd4+ {[%emt 0:03:07]} 51. Kb4 {[%emt 0:01:17]} Ra7 {[%emt 0:01:43]} 52. Be3 {[%emt 0:01:49]} Ra4+ {[%emt 0:00:14]} 53. Kc3 {[%emt 0:01:22]} Nf5 {[%emt 0:00:18]} 54. Rxb5 Nxe3 {[%emt 0:00:12]} 55. fxe3 {[%emt 0:01:40]} Ra3+ {[%emt 0:00:19]} 56. Kd4 {[%emt 0:00:19]} Ra2 {[%emt 0:00:06]} 57. Ke4 {[%emt 0:01:36]} Rxg2 {[%emt 0:00:06]} 58. Rb6+ {[%emt 0:00:11]} Kf7 {[%emt 0:00:02]} 59. Kf3 {[%emt 0:00:22]} Rc2 {[%emt 0:00:32]} 60. e4 {[%emt 0:01:06]} Rc3+ {[%emt 0:00:09]} 61. Kg4 {[%emt 0:00:26]} Re3 {[%emt 0:00:09]} 62. Rb4 {[%emt 0:00:34]} Kg6 {[%emt 0:00:06]} 63. Ra4 {[%emt 0:00:08]} Rxe4+ {[%emt 0:00:52]} 64. Rxe4 {[%emt 0:00:10]} f5+ {[%emt 0:00:02]} 65. Kf3 {[%emt 0:00:05]} fxe4+ {[%emt 0:00:02]} 66. Kxe4 {[%emt 0:00:05]} Kh5 {[%emt 0:00:02]} 67. Kf3 {[%emt 0:00:16]} Kh4 {[%emt 0:00:04]} 68. Kf2 {[%emt 0:00:32]} Kh3 {[%emt 0:00:07]} 69. Kg1 {[%emt 0:00:04]} Kg3 {[%emt 0:00:09]} 70. Kh1 {[%emt 0:00:17]} g4 {[%emt 0:00:25]} 71. Kg1 {[%emt 0:00:07]} Kh3 {[%emt 0:00:02]} 72. Kh1 {[%emt 0:00:15]} g3 {[%emt 0:00:04]} 73. Kg1 {[%emt 0:00:03]} g2 {[%emt 0:00:02]} 0-1

[Event "56th Rubinstein Memorial D 2020"]
[Site "Polanica Zdroj"]
[Date "2020.08.22"]
[Round "8.15"]
[White "Wilgosz, Jan"]
[Black "Grzebieniowski, Michal"]
[Result "1/2-1/2"]
[ECO "B13"]
[WhiteElo "1617"]
[BlackElo "1390"]
[Annotator "NA"]
[PlyCount "45"]
[EventDate "2020.08.15"]
[EventType "swiss"]
[EventCountry "POL"]
[SourceTitle "playchess.com"]
[Source "ChessBase"]
[SourceQuality "1"]
[TimeControl "40/5400+30:1800+30"]

1. e4 {[%emt 0:00:00]} c6 {[%emt 0:00:00]} 2. d4 {[%emt 0:00:02]} d5 {[%emt 0:00:00]} 3. exd5 {[%emt 0:00:12]} cxd5 {[%emt 0:00:08]} 4. c4 {[%emt 0:00:08]} Nf6 {[%emt 0:00:10]} 5. Nc3 {[%emt 0:00:17]} Nc6 {[%emt 0:00:08]} 6. Nf3 {[%emt 0:00:46]} a6 {[%emt 0:03:22]} 7. a3 {[%emt 0:09:34]} e6 {[%emt 0:06:01]} 8. c5 {[%emt 0:03:28]} Be7 {[%emt 0:00:34]} 9. Bf4 {[%emt 0:03:21]} O-O {[%emt 0:00:21]} 10. Bd3 {[%emt 0:02:41]} a5 {[%emt 0:02:59]} 11. O-O {[%emt 0:13:11]} b6 {[%emt 0:00:08]} 12. Bb5 {[%emt 0:03:14]} Na7 {[%emt 0:02:49]} 13. b4 {[%emt 0:08:58]} Ne4 {[%emt 0:00:40]} 14. Nxe4 {[%emt 0:09:01]} dxe4 {[%emt 0:00:29]} 15. Ne5 {[%emt 0:00:27]} Nxb5 {[%emt 0:00:13]} 16. Nc6 {[%emt 0:00:29]} Qd7 {[%emt 0:01:23]} 17. Nxe7+ {[%emt 0:00:44]} Qxe7 {[%emt 0:00:10]} 18. a4 {[%emt 0:01:25]} axb4 {[%emt 0:08:47]} 19. axb5 {[%emt 0:02:00]} Rxa1 {[%emt 0:00:21]} 20. Qxa1 {[%emt 0:00:18]} bxc5 {[%emt 0:00:07]} 21. Rc1 {[%emt 0:06:27]} cxd4 {[%emt 0:03:56]} 22. Qxd4 {[%emt 0:01:11]} Rd8 {[%emt 0:00:19]} 23. Qxe4 {[%emt 0:03:20]} 1/2-1/2

[Event "56th Rubinstein Memorial D 2020"]
[Site "Polanica Zdroj"]
[Date "2020.08.22"]
[Round "8.16"]
[White "Bednarczyk, Mateusz"]
[Black "Jurkiewicz, Joanna"]
[Result "1/2-1/2"]
[ECO "B00"]
[WhiteElo "1500"]
[BlackElo "1691"]
[Annotator "NA RC"]
[PlyCount "99"]
[EventDate "2020.08.15"]
[EventType "swiss"]
[EventCountry "POL"]
[SourceTitle "playchess.com"]
[Source "ChessBase"]
[SourceQuality "1"]
[TimeControl "40/5400+30:1800+30"]

1. e4 {[%emt 0:05:38]} b6 {[%emt 0:00:00]} 2. d4 {[%emt 0:00:08]} Bb7 {[%emt 0:00:00]} 3. Bd3 {[%emt 0:00:05]} e6 {[%emt 0:00:00]} 4. Nc3 {[%emt 0:00:06]} Bb4 {[%emt 0:00:47]} 5. Qf3 {[%emt 0:07:21]} Ne7 {[%emt 0:06:17]} 6. Nge2 {[%emt 0:00:38]} d5 {[%emt 0:02:26]} 7. e5 {[%emt 0:00:42]} c5 {[%emt 0:01:22]} 8. a3 {[%emt 0:05:53]} Bxc3+ {[%emt 0:00:51]} 9. bxc3 {[%emt 0:04:34]} Nbc6 {[%emt 0:06:40]} 10. Bb5 {[%emt 0:02:55]} a6 {[%emt 0:03:49]} 11. Bxc6+ {[%emt 0:00:12]} Bxc6 {[%emt 0:00:30]} 12. Ng3 {[%emt 0:00:24]} Bb5 {[%emt 0:05:11]} 13. Nh5 {[%emt 0:00:48]} Rg8 {[%emt 0:02:29]} 14. Qh3 {[%emt 0:02:51]} cxd4 {[%emt 0:01:37]} 15. Bh6 {[%emt 0:00:10]} Qc7 {[%emt 0:12:23]} 16. Nxg7+ {[%emt 0:06:04]} Kd7 {[%emt 0:06:09]} 17. cxd4 {[%emt 0:00:34]} Qxc2 {[%emt 0:00:51]} 18. Qe3 {[%emt 0:03:30]} Qg6 {[%emt 0:08:09]} 19. g3 {[%emt 0:02:16]} Rxg7 {[%emt 0:01:00]} 20. Bxg7 {[%emt 0:00:07]} Qxg7 {[%emt 0:00:03]} 21. a4 {[%emt 0:00:23]} Bc4 {[%emt 0:01:01]} 22. O-O-O {[%emt 0:09:24]} Rc8 {[%emt 0:06:54]} 23. Kb2 {[%emt 0:00:47]} Nc6 {[%emt 0:01:38]} 24. Qa3 {[%emt 0:00:26]} Qf8 {[%emt 0:00:47]} 25. Qxf8 {[%emt 0:00:34]} Rxf8 {[%emt 0:00:02]} 26. Rd2 {[%emt 0:00:37]} Na5 {[%emt 0:02:50]} 27. Ka3 {[%emt 0:03:29]} Nb3 {[%emt 0:03:44]} 28. Rb2 {[%emt 0:03:52]} Nxd4 {[%emt 0:02:28]} 29. Rxb6 {[%emt 0:00:13]} Nf3 {[%emt 0:02:52]} 30. Rhb1 {[%emt 0:01:55]} Nxe5 {[%emt 0:02:01]} 31. f4 {[%emt 0:04:12]} Nc6 {[%emt 0:03:56]} 32. Kb2 {[%emt 0:02:28]} Rb8 {[%emt 0:01:46]} 33. Rxb8 {[%emt 0:00:23]} Nxb8 {[%emt 0:00:01]} 34. Kc3 {[%emt 0:00:12]} Kc7 {[%emt 0:00:50]} 35. Kd4 {[%emt 0:02:54]} f6 {[%emt 0:00:34]} 36. g4 {[%emt 0:02:21]} Nc6+ {[%emt 0:02:28]} 37. Kc3 {[%emt 0:00:42]} e5 {[%emt 0:02:01]} 38. fxe5 {[%emt 0:01:12]} fxe5 {[%emt 0:00:01]} 39. Rg1 {[%emt 0:00:23]} Nd4 {[%emt 0:01:19]} 40. Rg2 {[%emt 0:00:47]} Kd6 {[%emt 0:01:20]} 41. g5 {[%emt 0:30:13]} Ke6 {[%emt 0:31:12]} 42. h4 {[%emt 0:00:27]} Kf5 {[%emt 0:00:31]} 43. h5 {[%emt 0:02:36]} Ne2+ {[%emt 0:00:27]} 44. Kd2 {[%emt 0:00:49]} Nf4 {[%emt 0:00:10]} 45. g6 {[%emt 0:00:08]} hxg6 {[%emt 0:03:30]} 46. h6 {[%emt 0:01:48]} Kf6 {[%emt 0:02:53]} 47. Rh2 {[%emt 0:01:50]} g5 {[%emt 0:00:35]} 48. h7 {[%emt 0:00:13]} Ng6 {[%emt 0:00:16]} 49. Rh6 {[%emt 0:00:06]} Kg7 {[%emt 0:00:35]} 50. Rh2 1/2-1/2

[Event "56th Rubinstein Memorial D 2020"]
[Site "Polanica Zdroj"]
[Date "2020.08.22"]
[Round "8.17"]
[White "Sidlo, Szymon"]
[Black "Ursnik, Patryk"]
[Result "1/2-1/2"]
[ECO "B34"]
[WhiteElo "1396"]
[BlackElo "1601"]
[Annotator "NA"]
[PlyCount "44"]
[EventDate "2020.08.15"]
[EventType "swiss"]
[EventCountry "POL"]
[SourceTitle "playchess.com"]
[Source "ChessBase"]
[SourceQuality "1"]
[TimeControl "40/5400+30:1800+30"]

1. e4 {[%emt 0:00:00]} c5 {[%emt 0:11:17]} 2. Nf3 {[%emt 0:00:00]} Nc6 {[%emt 0:00:05]} 3. d4 {[%emt 0:00:00]} cxd4 {[%emt 0:00:05]} 4. Nxd4 {[%emt 0:00:00]} Nf6 {[%emt 0:00:07]} 5. Nc3 {[%emt 0:00:00]} e5 {[%emt 0:00:09]} 6. Nde2 {[%emt 0:00:22]} Bb4 {[%emt 0:00:50]} 7. Bd2 {[%emt 0:00:33]} d5 {[%emt 0:03:00]} 8. exd5 {[%emt 0:04:32]} Nxd5 {[%emt 0:00:06]} 9. Nxd5 {[%emt 0:00:26]} Qxd5 {[%emt 0:00:16]} 10. Bxb4 {[%emt 0:02:49]} Nxb4 {[%emt 0:01:14]} 11. Qxd5 {[%emt 0:00:53]} Nxd5 {[%emt 0:00:06]} 12. O-O-O {[%emt 0:00:16]} Be6 {[%emt 0:00:08]} 13. g3 {[%emt 0:00:45]} Rc8 {[%emt 0:06:39]} 14. a3 {[%emt 0:01:16]} Ke7 {[%emt 0:11:04]} 15. Bg2 {[%emt 0:02:33]} Rhd8 {[%emt 0:00:11]} 16. Rhe1 {[%emt 0:01:21]} f6 {[%emt 0:06:41]} 17. Rd2 {[%emt 0:12:52]} b6 {[%emt 0:04:20]} 18. Red1 {[%emt 0:02:14]} Nc7 {[%emt 0:00:53]} 19. Nc3 {[%emt 0:00:26]} Rxd2 {[%emt 0:00:43]} 20. Rxd2 {[%emt 0:00:15]} Rd8 {[%emt 0:01:02]} 21. Rxd8 e4 22. Bf1 g6 1/2-1/2

[Event "56th Rubinstein Memorial D 2020"]
[Site "Polanica Zdroj"]
[Date "2020.08.22"]
[Round "8.18"]
[White "Pietrzak, Emilia"]
[Black "Wolska, Marta"]
[Result "1-0"]
[ECO "B11"]
[WhiteElo "1289"]
[BlackElo "1551"]
[Annotator "NA"]
[PlyCount "111"]
[EventDate "2020.08.15"]
[EventType "swiss"]
[EventCountry "POL"]
[SourceTitle "playchess.com"]
[Source "ChessBase"]
[SourceQuality "1"]
[TimeControl "40/5400+30:1800+30"]

1. e4 {[%emt 0:00:00]} c6 {[%emt 0:00:00]} 2. Nc3 {[%emt 0:00:00]} d5 {[%emt 0:00:00]} 3. Nf3 {[%emt 0:00:06]} Bg4 {[%emt 0:00:14]} 4. h3 {[%emt 0:00:07]} Bxf3 {[%emt 0:00:46]} 5. Qxf3 {[%emt 0:00:14]} dxe4 {[%emt 0:01:15]} 6. Nxe4 {[%emt 0:00:19]} e6 {[%emt 0:00:06]} 7. Bc4 {[%emt 0:01:50]} Be7 {[%emt 0:01:22]} 8. O-O {[%emt 0:01:05]} Nf6 {[%emt 0:00:11]} 9. c3 {[%emt 0:02:13]} Nbd7 {[%emt 0:01:27]} 10. d4 {[%emt 0:01:15]} O-O {[%emt 0:00:48]} 11. Bf4 {[%emt 0:03:00]} Nxe4 {[%emt 0:00:55]} 12. Qxe4 {[%emt 0:00:07]} Nf6 {[%emt 0:00:04]} 13. Qe2 {[%emt 0:07:07]} b5 {[%emt 0:02:37]} 14. Bd3 {[%emt 0:07:36]} Qd5 {[%emt 0:02:42]} 15. Be5 {[%emt 0:04:36]} Rfd8 {[%emt 0:04:12]} 16. Rfe1 {[%emt 0:05:53]} a6 {[%emt 0:01:37]} 17. b3 {[%emt 0:06:18]} Rac8 {[%emt 0:01:59]} 18. c4 {[%emt 0:03:17]} Qd7 {[%emt 0:00:49]} 19. a4 {[%emt 0:04:54]} b4 {[%emt 0:02:40]} 20. Rad1 {[%emt 0:06:23]} Qe8 {[%emt 0:03:04]} 21. g4 {[%emt 0:03:36]} Nd7 {[%emt 0:02:02]} 22. Qe4 {[%emt 0:04:56]} g6 {[%emt 0:00:07]} 23. Bf4 {[%emt 0:01:09]} Nf6 {[%emt 0:01:59]} 24. Qf3 {[%emt 0:04:26]} Qf8 {[%emt 0:04:38]} 25. c5 {[%emt 0:03:02]} a5 {[%emt 0:02:06]} 26. Ba6 {[%emt 0:00:19]} Ra8 {[%emt 0:00:32]} 27. Bb7 {[%emt 0:00:25]} Ra7 {[%emt 0:00:17]} 28. Bxc6 Nd5 {[%emt 0:00:25]} 29. Bg3 {[%emt 0:04:50]} Nc3 {[%emt 0:00:25]} 30. Rd3 {[%emt 0:00:33]} Qg7 {[%emt 0:02:50]} 31. Be5 {[%emt 0:01:30]} Qf8 {[%emt 0:00:54]} 32. Qg3 {[%emt 0:02:28]} Rc8 {[%emt 0:07:29]} 33. Bg2 {[%emt 0:02:09]} g5 {[%emt 0:01:42]} 34. Rxc3 bxc3 {[%emt 0:00:25]} 35. Qxc3 {[%emt 0:04:39]} Qd8 {[%emt 0:04:22]} 36. Qe3 {[%emt 0:02:46]} Bf6 {[%emt 0:03:52]} 37. Bd6 {[%emt 0:01:47]} Be7 {[%emt 0:00:11]} 38. Bxe7 {[%emt 0:01:37]} Qxe7 {[%emt 0:00:56]} 39. Qe5 {[%emt 0:00:08]} Rd8 {[%emt 0:02:17]} 40. c6 {[%emt 0:01:04]} Rd6 {[%emt 0:01:14]} 41. d5 {[%emt 0:30:37]} f6 {[%emt 0:30:20]} 42. Qe3 {[%emt 0:00:29]} e5 {[%emt 0:01:24]} 43. Be4 {[%emt 0:01:04]} Ra8 {[%emt 0:00:38]} 44. Qc5 {[%emt 0:01:18]} Qc7 {[%emt 0:01:29]} 45. Re3 {[%emt 0:01:24]} Rb8 {[%emt 0:00:59]} 46. Rf3 {[%emt 0:00:34]} Rb4 {[%emt 0:01:14]} 47. Bf5 {[%emt 0:00:30]} Kg7 {[%emt 0:01:43]} 48. Be6 {[%emt 0:00:41]} Rd4 {[%emt 0:01:21]} 49. Qb5 {[%emt 0:01:17]} Rb4 {[%emt 0:00:07]} 50. Qc5 {[%emt 0:00:36]} h6 {[%emt 0:00:18]} 51. Qc2 {[%emt 0:01:00]} Rf4 {[%emt 0:02:15]} 52. Rxf4 {[%emt 0:00:35]} gxf4 {[%emt 0:00:17]} 53. Qc5 {[%emt 0:00:31]} Rd8 {[%emt 0:01:28]} 54. b4 {[%emt 0:02:04]} axb4 {[%emt 0:00:16]} 55. Qxb4 {[%emt 0:00:22]} Rb8 {[%emt 0:00:24]} 56. d6 {[%emt 0:00:48]} 1-0